{"text_format":"1","workbook":"xlsx","n_sheets":3,"sheets":["Sheet1","Sheet2","Sheet3"],"not_rendered":{"charts":0,"images":0,"macros":1,"external_links":0,"defined_names":0,"comments":0,"pivot_tables":0},"unopened":[],"bounds":{"document_bytes":16777216,"sheet_cells":100000,"rows_first":2000,"rows_last":500,"rows_between":2000,"halvings":0,"cell_chars":16384,"cell_head_chars":4096},"cells_cut":0,"cells_raw":0,"read":"whole","date_system":"1900"}

{"sheet":"Sheet1","index":0,"n_rows":0,"n_cols":0,"rows_kept":0,"cut":false,"hidden":false,"merged":[]}

{"sheet":"Sheet2","index":1,"n_rows":0,"n_cols":0,"rows_kept":0,"cut":false,"hidden":false,"merged":[]}

{"sheet":"Sheet3","index":2,"n_rows":669,"n_cols":16,"rows_kept":669,"cut":false,"hidden":false,"merged":[[10,14,10,15],[11,15,11,19],[12,15,12,19],[13,15,13,19]]}
[{"$f":"TODAY()","v":"2019-08-08"},null,null,null,null,null,null,{"$f":"B3*C3","v":100}]
["الشهر","الأجر الأساسى","العلاوة الدورية","تاريخ التعيين","قيمة العلاوة","نسبة العلاوة","الأجمالى","نسبة العلاوة"]
[{"$f":"YEAR(D3)","v":2013},1000,0.1,"2013-01-01",{"$f":"B3*C3","v":100},{"$f":"IFERROR(TRUNC(IF(B3=\"\",\"\",IF(AND(B3*C3>=350,YEAR(D3)<YEAR(TODAY())),350,IF(AND(B3*C3<=75,YEAR(D3)<YEAR(TODAY())),75,IF(YEAR(D3)=YEAR(TODAY()),(DATEDIF(D3,TODAY(),\"M\")/12*C3)*B3,C3*B3)))),2),\"\")","v":100},{"$f":"F3+B3","v":1100},{"$f":"ALAWA1(E3,A3,D3,$A$1,B3)","v":100}]
[{"$f":"YEAR(D4)","v":2013},500,0.1,"2013-01-02",{"$f":"B4*C4","v":50},{"$f":"IFERROR(TRUNC(IF(B4=\"\",\"\",IF(AND(B4*C4>=350,YEAR(D4)<YEAR(TODAY())),350,IF(AND(B4*C4<=75,YEAR(D4)<YEAR(TODAY())),75,IF(YEAR(D4)=YEAR(TODAY()),(DATEDIF(D4,TODAY(),\"M\")/12*C4)*B4,C4*B4)))),2),\"\")","v":75},{"$f":"F4+B4","v":575},{"$f":"ALAWA1(E4,A4,D4,$A$1,B4)","v":75}]
[2019,500,0.1,"2019-01-01",50,{"$f":"IFERROR(TRUNC(IF(B5=\"\",\"\",IF(AND(B5*C5>=350,YEAR(D5)<YEAR(TODAY())),350,IF(AND(B5*C5<=75,YEAR(D5)<YEAR(TODAY())),75,IF(YEAR(D5)=YEAR(TODAY()),(DATEDIF(D5,TODAY(),\"M\")/12*C5)*B5,C5*B5)))),2),\"\")","v":29.16},{"$f":"F5+B5","v":529.16},30.416666666666664]
[2013,5000,0.1,"2013-01-01",500,{"$f":"IFERROR(TRUNC(IF(B6=\"\",\"\",IF(AND(B6*C6>=350,YEAR(D6)<YEAR(TODAY())),350,IF(AND(B6*C6<=75,YEAR(D6)<YEAR(TODAY())),75,IF(YEAR(D6)=YEAR(TODAY()),(DATEDIF(D6,TODAY(),\"M\")/12*C6)*B6,C6*B6)))),2),\"\")","v":350},{"$f":"F6+B6","v":5350},350]
[null,null,null,null,null,{"$f":"IFERROR(TRUNC(IF(B7=\"\",\"\",IF(AND(B7*C7>=350,YEAR(D7)<YEAR(TODAY())),350,IF(AND(B7*C7<=75,YEAR(D7)<YEAR(TODAY())),75,IF(YEAR(D7)=YEAR(TODAY()),(DATEDIF(D7,TODAY(),\"M\")/12*C7)*B7,C7*B7)))),2),\"\")","v":""}]
[null,null,null,{"$f":"A1-D5","v":219},null,{"$f":"IFERROR(TRUNC(IF(B8=\"\",\"\",IF(AND(B8*C8>=350,YEAR(D8)<YEAR(TODAY())),350,IF(AND(B8*C8<=75,YEAR(D8)<YEAR(TODAY())),75,IF(YEAR(D8)=YEAR(TODAY()),(DATEDIF(D8,TODAY(),\"M\")/12*C8)*B8,C8*B8)))),2),\"\")","v":""}]
[null,null,null,{"$f":"D8/30","v":7.3},null,{"$f":"IFERROR(TRUNC(IF(B9=\"\",\"\",IF(AND(B9*C9>=350,YEAR(D9)<YEAR(TODAY())),350,IF(AND(B9*C9<=75,YEAR(D9)<YEAR(TODAY())),75,IF(YEAR(D9)=YEAR(TODAY()),(DATEDIF(D9,TODAY(),\"M\")/12*C9)*B9,C9*B9)))),2),\"\")","v":""}]
[null,null,null,null,null,{"$f":"IFERROR(TRUNC(IF(B10=\"\",\"\",IF(AND(B10*C10>=350,YEAR(D10)<YEAR(TODAY())),350,IF(AND(B10*C10<=75,YEAR(D10)<YEAR(TODAY())),75,IF(YEAR(D10)=YEAR(TODAY()),(DATEDIF(D10,TODAY(),\"M\")/12*C10)*B10,C10*B10)))),2),\"\")","v":""}]
[]
[null,null,null,null,null,{"$f":"IFERROR(TRUNC(IF(B12=\"\",\"\",IF(AND(B12*C12>=350,YEAR(D12)<YEAR(TODAY())),350,IF(AND(B12*C12<=75,YEAR(D12)<YEAR(TODAY())),75,IF(YEAR(D12)=YEAR(TODAY()),(DATEDIF(D12,TODAY(),\"M\")/12*C12)*B12,C12*B12)))),2),\"\")","v":""},null,null,null,null,null,null,null,null,1,"أذا كان ناتج نسبة العلاوة أكبر من 350 يضع 350"]
[null,null,null,null,null,{"$f":"IFERROR(TRUNC(IF(B13=\"\",\"\",IF(AND(B13*C13>=350,YEAR(D13)<YEAR(TODAY())),350,IF(AND(B13*C13<=75,YEAR(D13)<YEAR(TODAY())),75,IF(YEAR(D13)=YEAR(TODAY()),(DATEDIF(D13,TODAY(),\"M\")/12*C13)*B13,C13*B13)))),2),\"\")","v":""},null,null,null,null,null,null,null,null,2,"أذا كان ناتج نسبة العلاوة أقل من 75 يضع 75"]
[null,null,null,null,null,{"$f":"IFERROR(TRUNC(IF(B14=\"\",\"\",IF(AND(B14*C14>=350,YEAR(D14)<YEAR(TODAY())),350,IF(AND(B14*C14<=75,YEAR(D14)<YEAR(TODAY())),75,IF(YEAR(D14)=YEAR(TODAY()),(DATEDIF(D14,TODAY(),\"M\")/12*C14)*B14,C14*B14)))),2),\"\")","v":""},null,null,null,null,null,null,null,null,3,"أذا كان موظف تم تعينة فى سنه 2019 يحسب لة بنسبة مدة ولا يضع له 75 جنية"]
[null,null,null,null,null,{"$f":"IFERROR(TRUNC(IF(B15=\"\",\"\",IF(AND(B15*C15>=350,YEAR(D15)<YEAR(TODAY())),350,IF(AND(B15*C15<=75,YEAR(D15)<YEAR(TODAY())),75,IF(YEAR(D15)=YEAR(TODAY()),(DATEDIF(D15,TODAY(),\"M\")/12*C15)*B15,C15*B15)))),2),\"\")","v":""}]
[null,null,null,null,null,{"$f":"IFERROR(TRUNC(IF(B16=\"\",\"\",IF(AND(B16*C16>=350,YEAR(D16)<YEAR(TODAY())),350,IF(AND(B16*C16<=75,YEAR(D16)<YEAR(TODAY())),75,IF(YEAR(D16)=YEAR(TODAY()),(DATEDIF(D16,TODAY(),\"M\")/12*C16)*B16,C16*B16)))),2),\"\")","v":""}]
[null,null,null,null,null,{"$f":"IFERROR(TRUNC(IF(B17=\"\",\"\",IF(AND(B17*C17>=350,YEAR(D17)<YEAR(TODAY())),350,IF(AND(B17*C17<=75,YEAR(D17)<YEAR(TODAY())),75,IF(YEAR(D17)=YEAR(TODAY()),(DATEDIF(D17,TODAY(),\"M\")/12*C17)*B17,C17*B17)))),2),\"\")","v":""}]
[null,null,null,null,null,{"$f":"IFERROR(TRUNC(IF(B18=\"\",\"\",IF(AND(B18*C18>=350,YEAR(D18)<YEAR(TODAY())),350,IF(AND(B18*C18<=75,YEAR(D18)<YEAR(TODAY())),75,IF(YEAR(D18)=YEAR(TODAY()),(DATEDIF(D18,TODAY(),\"M\")/12*C18)*B18,C18*B18)))),2),\"\")","v":""}]
[null,null,null,null,null,{"$f":"IFERROR(TRUNC(IF(B19=\"\",\"\",IF(AND(B19*C19>=350,YEAR(D19)<YEAR(TODAY())),350,IF(AND(B19*C19<=75,YEAR(D19)<YEAR(TODAY())),75,IF(YEAR(D19)=YEAR(TODAY()),(DATEDIF(D19,TODAY(),\"M\")/12*C19)*B19,C19*B19)))),2),\"\")","v":""}]
[null,null,null,null,null,{"$f":"IFERROR(TRUNC(IF(B20=\"\",\"\",IF(AND(B20*C20>=350,YEAR(D20)<YEAR(TODAY())),350,IF(AND(B20*C20<=75,YEAR(D20)<YEAR(TODAY())),75,IF(YEAR(D20)=YEAR(TODAY()),(DATEDIF(D20,TODAY(),\"M\")/12*C20)*B20,C20*B20)))),2),\"\")","v":""}]
[null,null,null,null,null,{"$f":"IFERROR(TRUNC(IF(B21=\"\",\"\",IF(AND(B21*C21>=350,YEAR(D21)<YEAR(TODAY())),350,IF(AND(B21*C21<=75,YEAR(D21)<YEAR(TODAY())),75,IF(YEAR(D21)=YEAR(TODAY()),(DATEDIF(D21,TODAY(),\"M\")/12*C21)*B21,C21*B21)))),2),\"\")","v":""}]
[null,null,null,null,null,{"$f":"IFERROR(TRUNC(IF(B22=\"\",\"\",IF(AND(B22*C22>=350,YEAR(D22)<YEAR(TODAY())),350,IF(AND(B22*C22<=75,YEAR(D22)<YEAR(TODAY())),75,IF(YEAR(D22)=YEAR(TODAY()),(DATEDIF(D22,TODAY(),\"M\")/12*C22)*B22,C22*B22)))),2),\"\")","v":""}]
[null,null,null,null,null,{"$f":"IFERROR(TRUNC(IF(B23=\"\",\"\",IF(AND(B23*C23>=350,YEAR(D23)<YEAR(TODAY())),350,IF(AND(B23*C23<=75,YEAR(D23)<YEAR(TODAY())),75,IF(YEAR(D23)=YEAR(TODAY()),(DATEDIF(D23,TODAY(),\"M\")/12*C23)*B23,C23*B23)))),2),\"\")","v":""}]
[null,null,null,null,null,{"$f":"IFERROR(TRUNC(IF(B24=\"\",\"\",IF(AND(B24*C24>=350,YEAR(D24)<YEAR(TODAY())),350,IF(AND(B24*C24<=75,YEAR(D24)<YEAR(TODAY())),75,IF(YEAR(D24)=YEAR(TODAY()),(DATEDIF(D24,TODAY(),\"M\")/12*C24)*B24,C24*B24)))),2),\"\")","v":""}]
[null,null,null,null,null,{"$f":"IFERROR(TRUNC(IF(B25=\"\",\"\",IF(AND(B25*C25>=350,YEAR(D25)<YEAR(TODAY())),350,IF(AND(B25*C25<=75,YEAR(D25)<YEAR(TODAY())),75,IF(YEAR(D25)=YEAR(TODAY()),(DATEDIF(D25,TODAY(),\"M\")/12*C25)*B25,C25*B25)))),2),\"\")","v":""}]
[null,null,null,null,null,{"$f":"IFERROR(TRUNC(IF(B26=\"\",\"\",IF(AND(B26*C26>=350,YEAR(D26)<YEAR(TODAY())),350,IF(AND(B26*C26<=75,YEAR(D26)<YEAR(TODAY())),75,IF(YEAR(D26)=YEAR(TODAY()),(DATEDIF(D26,TODAY(),\"M\")/12*C26)*B26,C26*B26)))),2),\"\")","v":""}]
[null,null,null,null,null,{"$f":"IFERROR(TRUNC(IF(B27=\"\",\"\",IF(AND(B27*C27>=350,YEAR(D27)<YEAR(TODAY())),350,IF(AND(B27*C27<=75,YEAR(D27)<YEAR(TODAY())),75,IF(YEAR(D27)=YEAR(TODAY()),(DATEDIF(D27,TODAY(),\"M\")/12*C27)*B27,C27*B27)))),2),\"\")","v":""}]
[null,null,null,null,null,{"$f":"IFERROR(TRUNC(IF(B28=\"\",\"\",IF(AND(B28*C28>=350,YEAR(D28)<YEAR(TODAY())),350,IF(AND(B28*C28<=75,YEAR(D28)<YEAR(TODAY())),75,IF(YEAR(D28)=YEAR(TODAY()),(DATEDIF(D28,TODAY(),\"M\")/12*C28)*B28,C28*B28)))),2),\"\")","v":""}]
[null,null,null,null,null,{"$f":"IFERROR(TRUNC(IF(B29=\"\",\"\",IF(AND(B29*C29>=350,YEAR(D29)<YEAR(TODAY())),350,IF(AND(B29*C29<=75,YEAR(D29)<YEAR(TODAY())),75,IF(YEAR(D29)=YEAR(TODAY()),(DATEDIF(D29,TODAY(),\"M\")/12*C29)*B29,C29*B29)))),2),\"\")","v":""}]
[null,null,null,null,null,{"$f":"IFERROR(TRUNC(IF(B30=\"\",\"\",IF(AND(B30*C30>=350,YEAR(D30)<YEAR(TODAY())),350,IF(AND(B30*C30<=75,YEAR(D30)<YEAR(TODAY())),75,IF(YEAR(D30)=YEAR(TODAY()),(DATEDIF(D30,TODAY(),\"M\")/12*C30)*B30,C30*B30)))),2),\"\")","v":""}]
[null,null,null,null,null,{"$f":"IFERROR(TRUNC(IF(B31=\"\",\"\",IF(AND(B31*C31>=350,YEAR(D31)<YEAR(TODAY())),350,IF(AND(B31*C31<=75,YEAR(D31)<YEAR(TODAY())),75,IF(YEAR(D31)=YEAR(TODAY()),(DATEDIF(D31,TODAY(),\"M\")/12*C31)*B31,C31*B31)))),2),\"\")","v":""}]
[null,null,null,null,null,{"$f":"IFERROR(TRUNC(IF(B32=\"\",\"\",IF(AND(B32*C32>=350,YEAR(D32)<YEAR(TODAY())),350,IF(AND(B32*C32<=75,YEAR(D32)<YEAR(TODAY())),75,IF(YEAR(D32)=YEAR(TODAY()),(DATEDIF(D32,TODAY(),\"M\")/12*C32)*B32,C32*B32)))),2),\"\")","v":""}]
[null,null,null,null,null,{"$f":"IFERROR(TRUNC(IF(B33=\"\",\"\",IF(AND(B33*C33>=350,YEAR(D33)<YEAR(TODAY())),350,IF(AND(B33*C33<=75,YEAR(D33)<YEAR(TODAY())),75,IF(YEAR(D33)=YEAR(TODAY()),(DATEDIF(D33,TODAY(),\"M\")/12*C33)*B33,C33*B33)))),2),\"\")","v":""}]
[null,null,null,null,null,{"$f":"IFERROR(TRUNC(IF(B34=\"\",\"\",IF(AND(B34*C34>=350,YEAR(D34)<YEAR(TODAY())),350,IF(AND(B34*C34<=75,YEAR(D34)<YEAR(TODAY())),75,IF(YEAR(D34)=YEAR(TODAY()),(DATEDIF(D34,TODAY(),\"M\")/12*C34)*B34,C34*B34)))),2),\"\")","v":""}]
[null,null,null,null,null,{"$f":"IFERROR(TRUNC(IF(B35=\"\",\"\",IF(AND(B35*C35>=350,YEAR(D35)<YEAR(TODAY())),350,IF(AND(B35*C35<=75,YEAR(D35)<YEAR(TODAY())),75,IF(YEAR(D35)=YEAR(TODAY()),(DATEDIF(D35,TODAY(),\"M\")/12*C35)*B35,C35*B35)))),2),\"\")","v":""}]
[null,null,null,null,null,{"$f":"IFERROR(TRUNC(IF(B36=\"\",\"\",IF(AND(B36*C36>=350,YEAR(D36)<YEAR(TODAY())),350,IF(AND(B36*C36<=75,YEAR(D36)<YEAR(TODAY())),75,IF(YEAR(D36)=YEAR(TODAY()),(DATEDIF(D36,TODAY(),\"M\")/12*C36)*B36,C36*B36)))),2),\"\")","v":""}]
[null,null,null,null,null,{"$f":"IFERROR(TRUNC(IF(B37=\"\",\"\",IF(AND(B37*C37>=350,YEAR(D37)<YEAR(TODAY())),350,IF(AND(B37*C37<=75,YEAR(D37)<YEAR(TODAY())),75,IF(YEAR(D37)=YEAR(TODAY()),(DATEDIF(D37,TODAY(),\"M\")/12*C37)*B37,C37*B37)))),2),\"\")","v":""}]
[null,null,null,null,null,{"$f":"IFERROR(TRUNC(IF(B38=\"\",\"\",IF(AND(B38*C38>=350,YEAR(D38)<YEAR(TODAY())),350,IF(AND(B38*C38<=75,YEAR(D38)<YEAR(TODAY())),75,IF(YEAR(D38)=YEAR(TODAY()),(DATEDIF(D38,TODAY(),\"M\")/12*C38)*B38,C38*B38)))),2),\"\")","v":""}]
[null,null,null,null,null,{"$f":"IFERROR(TRUNC(IF(B39=\"\",\"\",IF(AND(B39*C39>=350,YEAR(D39)<YEAR(TODAY())),350,IF(AND(B39*C39<=75,YEAR(D39)<YEAR(TODAY())),75,IF(YEAR(D39)=YEAR(TODAY()),(DATEDIF(D39,TODAY(),\"M\")/12*C39)*B39,C39*B39)))),2),\"\")","v":""}]
[null,null,null,null,null,{"$f":"IFERROR(TRUNC(IF(B40=\"\",\"\",IF(AND(B40*C40>=350,YEAR(D40)<YEAR(TODAY())),350,IF(AND(B40*C40<=75,YEAR(D40)<YEAR(TODAY())),75,IF(YEAR(D40)=YEAR(TODAY()),(DATEDIF(D40,TODAY(),\"M\")/12*C40)*B40,C40*B40)))),2),\"\")","v":""}]
[null,null,null,null,null,{"$f":"IFERROR(TRUNC(IF(B41=\"\",\"\",IF(AND(B41*C41>=350,YEAR(D41)<YEAR(TODAY())),350,IF(AND(B41*C41<=75,YEAR(D41)<YEAR(TODAY())),75,IF(YEAR(D41)=YEAR(TODAY()),(DATEDIF(D41,TODAY(),\"M\")/12*C41)*B41,C41*B41)))),2),\"\")","v":""}]
[null,null,null,null,null,{"$f":"IFERROR(TRUNC(IF(B42=\"\",\"\",IF(AND(B42*C42>=350,YEAR(D42)<YEAR(TODAY())),350,IF(AND(B42*C42<=75,YEAR(D42)<YEAR(TODAY())),75,IF(YEAR(D42)=YEAR(TODAY()),(DATEDIF(D42,TODAY(),\"M\")/12*C42)*B42,C42*B42)))),2),\"\")","v":""}]
[null,null,null,null,null,{"$f":"IFERROR(TRUNC(IF(B43=\"\",\"\",IF(AND(B43*C43>=350,YEAR(D43)<YEAR(TODAY())),350,IF(AND(B43*C43<=75,YEAR(D43)<YEAR(TODAY())),75,IF(YEAR(D43)=YEAR(TODAY()),(DATEDIF(D43,TODAY(),\"M\")/12*C43)*B43,C43*B43)))),2),\"\")","v":""}]
[null,null,null,null,null,{"$f":"IFERROR(TRUNC(IF(B44=\"\",\"\",IF(AND(B44*C44>=350,YEAR(D44)<YEAR(TODAY())),350,IF(AND(B44*C44<=75,YEAR(D44)<YEAR(TODAY())),75,IF(YEAR(D44)=YEAR(TODAY()),(DATEDIF(D44,TODAY(),\"M\")/12*C44)*B44,C44*B44)))),2),\"\")","v":""}]
[null,null,null,null,null,{"$f":"IFERROR(TRUNC(IF(B45=\"\",\"\",IF(AND(B45*C45>=350,YEAR(D45)<YEAR(TODAY())),350,IF(AND(B45*C45<=75,YEAR(D45)<YEAR(TODAY())),75,IF(YEAR(D45)=YEAR(TODAY()),(DATEDIF(D45,TODAY(),\"M\")/12*C45)*B45,C45*B45)))),2),\"\")","v":""}]
[null,null,null,null,null,{"$f":"IFERROR(TRUNC(IF(B46=\"\",\"\",IF(AND(B46*C46>=350,YEAR(D46)<YEAR(TODAY())),350,IF(AND(B46*C46<=75,YEAR(D46)<YEAR(TODAY())),75,IF(YEAR(D46)=YEAR(TODAY()),(DATEDIF(D46,TODAY(),\"M\")/12*C46)*B46,C46*B46)))),2),\"\")","v":""}]
[null,null,null,null,null,{"$f":"IFERROR(TRUNC(IF(B47=\"\",\"\",IF(AND(B47*C47>=350,YEAR(D47)<YEAR(TODAY())),350,IF(AND(B47*C47<=75,YEAR(D47)<YEAR(TODAY())),75,IF(YEAR(D47)=YEAR(TODAY()),(DATEDIF(D47,TODAY(),\"M\")/12*C47)*B47,C47*B47)))),2),\"\")","v":""}]
[null,null,null,null,null,{"$f":"IFERROR(TRUNC(IF(B48=\"\",\"\",IF(AND(B48*C48>=350,YEAR(D48)<YEAR(TODAY())),350,IF(AND(B48*C48<=75,YEAR(D48)<YEAR(TODAY())),75,IF(YEAR(D48)=YEAR(TODAY()),(DATEDIF(D48,TODAY(),\"M\")/12*C48)*B48,C48*B48)))),2),\"\")","v":""}]
[null,null,null,null,null,{"$f":"IFERROR(TRUNC(IF(B49=\"\",\"\",IF(AND(B49*C49>=350,YEAR(D49)<YEAR(TODAY())),350,IF(AND(B49*C49<=75,YEAR(D49)<YEAR(TODAY())),75,IF(YEAR(D49)=YEAR(TODAY()),(DATEDIF(D49,TODAY(),\"M\")/12*C49)*B49,C49*B49)))),2),\"\")","v":""}]
[null,null,null,null,null,{"$f":"IFERROR(TRUNC(IF(B50=\"\",\"\",IF(AND(B50*C50>=350,YEAR(D50)<YEAR(TODAY())),350,IF(AND(B50*C50<=75,YEAR(D50)<YEAR(TODAY())),75,IF(YEAR(D50)=YEAR(TODAY()),(DATEDIF(D50,TODAY(),\"M\")/12*C50)*B50,C50*B50)))),2),\"\")","v":""}]
[null,null,null,null,null,{"$f":"IFERROR(TRUNC(IF(B51=\"\",\"\",IF(AND(B51*C51>=350,YEAR(D51)<YEAR(TODAY())),350,IF(AND(B51*C51<=75,YEAR(D51)<YEAR(TODAY())),75,IF(YEAR(D51)=YEAR(TODAY()),(DATEDIF(D51,TODAY(),\"M\")/12*C51)*B51,C51*B51)))),2),\"\")","v":""}]
[null,null,null,null,null,{"$f":"IFERROR(TRUNC(IF(B52=\"\",\"\",IF(AND(B52*C52>=350,YEAR(D52)<YEAR(TODAY())),350,IF(AND(B52*C52<=75,YEAR(D52)<YEAR(TODAY())),75,IF(YEAR(D52)=YEAR(TODAY()),(DATEDIF(D52,TODAY(),\"M\")/12*C52)*B52,C52*B52)))),2),\"\")","v":""}]
[null,null,null,null,null,{"$f":"IFERROR(TRUNC(IF(B53=\"\",\"\",IF(AND(B53*C53>=350,YEAR(D53)<YEAR(TODAY())),350,IF(AND(B53*C53<=75,YEAR(D53)<YEAR(TODAY())),75,IF(YEAR(D53)=YEAR(TODAY()),(DATEDIF(D53,TODAY(),\"M\")/12*C53)*B53,C53*B53)))),2),\"\")","v":""}]
[null,null,null,null,null,{"$f":"IFERROR(TRUNC(IF(B54=\"\",\"\",IF(AND(B54*C54>=350,YEAR(D54)<YEAR(TODAY())),350,IF(AND(B54*C54<=75,YEAR(D54)<YEAR(TODAY())),75,IF(YEAR(D54)=YEAR(TODAY()),(DATEDIF(D54,TODAY(),\"M\")/12*C54)*B54,C54*B54)))),2),\"\")","v":""}]
[null,null,null,null,null,{"$f":"IFERROR(TRUNC(IF(B55=\"\",\"\",IF(AND(B55*C55>=350,YEAR(D55)<YEAR(TODAY())),350,IF(AND(B55*C55<=75,YEAR(D55)<YEAR(TODAY())),75,IF(YEAR(D55)=YEAR(TODAY()),(DATEDIF(D55,TODAY(),\"M\")/12*C55)*B55,C55*B55)))),2),\"\")","v":""}]
[null,null,null,null,null,{"$f":"IFERROR(TRUNC(IF(B56=\"\",\"\",IF(AND(B56*C56>=350,YEAR(D56)<YEAR(TODAY())),350,IF(AND(B56*C56<=75,YEAR(D56)<YEAR(TODAY())),75,IF(YEAR(D56)=YEAR(TODAY()),(DATEDIF(D56,TODAY(),\"M\")/12*C56)*B56,C56*B56)))),2),\"\")","v":""}]
[null,null,null,null,null,{"$f":"IFERROR(TRUNC(IF(B57=\"\",\"\",IF(AND(B57*C57>=350,YEAR(D57)<YEAR(TODAY())),350,IF(AND(B57*C57<=75,YEAR(D57)<YEAR(TODAY())),75,IF(YEAR(D57)=YEAR(TODAY()),(DATEDIF(D57,TODAY(),\"M\")/12*C57)*B57,C57*B57)))),2),\"\")","v":""}]
[null,null,null,null,null,{"$f":"IFERROR(TRUNC(IF(B58=\"\",\"\",IF(AND(B58*C58>=350,YEAR(D58)<YEAR(TODAY())),350,IF(AND(B58*C58<=75,YEAR(D58)<YEAR(TODAY())),75,IF(YEAR(D58)=YEAR(TODAY()),(DATEDIF(D58,TODAY(),\"M\")/12*C58)*B58,C58*B58)))),2),\"\")","v":""}]
[null,null,null,null,null,{"$f":"IFERROR(TRUNC(IF(B59=\"\",\"\",IF(AND(B59*C59>=350,YEAR(D59)<YEAR(TODAY())),350,IF(AND(B59*C59<=75,YEAR(D59)<YEAR(TODAY())),75,IF(YEAR(D59)=YEAR(TODAY()),(DATEDIF(D59,TODAY(),\"M\")/12*C59)*B59,C59*B59)))),2),\"\")","v":""}]
[null,null,null,null,null,{"$f":"IFERROR(TRUNC(IF(B60=\"\",\"\",IF(AND(B60*C60>=350,YEAR(D60)<YEAR(TODAY())),350,IF(AND(B60*C60<=75,YEAR(D60)<YEAR(TODAY())),75,IF(YEAR(D60)=YEAR(TODAY()),(DATEDIF(D60,TODAY(),\"M\")/12*C60)*B60,C60*B60)))),2),\"\")","v":""}]
[null,null,null,null,null,{"$f":"IFERROR(TRUNC(IF(B61=\"\",\"\",IF(AND(B61*C61>=350,YEAR(D61)<YEAR(TODAY())),350,IF(AND(B61*C61<=75,YEAR(D61)<YEAR(TODAY())),75,IF(YEAR(D61)=YEAR(TODAY()),(DATEDIF(D61,TODAY(),\"M\")/12*C61)*B61,C61*B61)))),2),\"\")","v":""}]
[null,null,null,null,null,{"$f":"IFERROR(TRUNC(IF(B62=\"\",\"\",IF(AND(B62*C62>=350,YEAR(D62)<YEAR(TODAY())),350,IF(AND(B62*C62<=75,YEAR(D62)<YEAR(TODAY())),75,IF(YEAR(D62)=YEAR(TODAY()),(DATEDIF(D62,TODAY(),\"M\")/12*C62)*B62,C62*B62)))),2),\"\")","v":""}]
[null,null,null,null,null,{"$f":"IFERROR(TRUNC(IF(B63=\"\",\"\",IF(AND(B63*C63>=350,YEAR(D63)<YEAR(TODAY())),350,IF(AND(B63*C63<=75,YEAR(D63)<YEAR(TODAY())),75,IF(YEAR(D63)=YEAR(TODAY()),(DATEDIF(D63,TODAY(),\"M\")/12*C63)*B63,C63*B63)))),2),\"\")","v":""}]
[null,null,null,null,null,{"$f":"IFERROR(TRUNC(IF(B64=\"\",\"\",IF(AND(B64*C64>=350,YEAR(D64)<YEAR(TODAY())),350,IF(AND(B64*C64<=75,YEAR(D64)<YEAR(TODAY())),75,IF(YEAR(D64)=YEAR(TODAY()),(DATEDIF(D64,TODAY(),\"M\")/12*C64)*B64,C64*B64)))),2),\"\")","v":""}]
[null,null,null,null,null,{"$f":"IFERROR(TRUNC(IF(B65=\"\",\"\",IF(AND(B65*C65>=350,YEAR(D65)<YEAR(TODAY())),350,IF(AND(B65*C65<=75,YEAR(D65)<YEAR(TODAY())),75,IF(YEAR(D65)=YEAR(TODAY()),(DATEDIF(D65,TODAY(),\"M\")/12*C65)*B65,C65*B65)))),2),\"\")","v":""}]
[null,null,null,null,null,{"$f":"IFERROR(TRUNC(IF(B66=\"\",\"\",IF(AND(B66*C66>=350,YEAR(D66)<YEAR(TODAY())),350,IF(AND(B66*C66<=75,YEAR(D66)<YEAR(TODAY())),75,IF(YEAR(D66)=YEAR(TODAY()),(DATEDIF(D66,TODAY(),\"M\")/12*C66)*B66,C66*B66)))),2),\"\")","v":""}]
[null,null,null,null,null,{"$f":"IFERROR(TRUNC(IF(B67=\"\",\"\",IF(AND(B67*C67>=350,YEAR(D67)<YEAR(TODAY())),350,IF(AND(B67*C67<=75,YEAR(D67)<YEAR(TODAY())),75,IF(YEAR(D67)=YEAR(TODAY()),(DATEDIF(D67,TODAY(),\"M\")/12*C67)*B67,C67*B67)))),2),\"\")","v":""}]
[null,null,null,null,null,""]
[null,null,null,null,null,""]
[null,null,null,null,null,""]
[null,null,null,null,null,""]
[null,null,null,null,null,""]
[null,null,null,null,null,""]
[null,null,null,null,null,""]
[null,null,null,null,null,""]
[null,null,null,null,null,""]
[null,null,null,null,null,""]
[null,null,null,null,null,""]
[null,null,null,null,null,""]
[null,null,null,null,null,""]
[null,null,null,null,null,""]
[null,null,null,null,null,""]
[null,null,null,null,null,""]
[null,null,null,null,null,""]
[null,null,null,null,null,""]
[null,null,null,null,null,""]
[null,null,null,null,null,""]
[null,null,null,null,null,""]
[null,null,null,null,null,""]
[null,null,null,null,null,""]
[null,null,null,null,null,""]
[null,null,null,null,null,""]
[null,null,null,null,null,""]
[null,null,null,null,null,""]
[null,null,null,null,null,""]
[null,null,null,null,null,""]
[null,null,null,null,null,""]
[null,null,null,null,null,""]
[null,null,null,null,null,""]
[null,null,null,null,null,""]
[null,null,null,null,null,""]
[null,null,null,null,null,""]
[null,null,null,null,null,""]
[null,null,null,null,null,""]
[null,null,null,null,null,""]
[null,null,null,null,null,""]
[null,null,null,null,null,""]
[null,null,null,null,null,""]
[null,null,null,null,null,""]
[null,null,null,null,null,""]
[null,null,null,null,null,""]
[null,null,null,null,null,""]
[null,null,null,null,null,""]
[null,null,null,null,null,""]
[null,null,null,null,null,""]
[null,null,null,null,null,""]
[null,null,null,null,null,""]
[null,null,null,null,null,""]
[null,null,null,null,null,""]
[null,null,null,null,null,""]
[null,null,null,null,null,""]
[null,null,null,null,null,""]
[null,null,null,null,null,""]
[null,null,null,null,null,""]
[null,null,null,null,null,""]
[null,null,null,null,null,""]
[null,null,null,null,null,""]
[null,null,null,null,null,""]
[null,null,null,null,null,""]
[null,null,null,null,null,""]
[null,null,null,null,null,{"$f":"IFERROR(TRUNC(IF(B131=\"\",\"\",IF(AND(B131*C131>=350,YEAR(D131)<YEAR(TODAY())),350,IF(AND(B131*C131<=75,YEAR(D131)<YEAR(TODAY())),75,IF(YEAR(D131)=YEAR(TODAY()),(DATEDIF(D131,TODAY(),\"M\")/12*C131)*B131,C131*B131)))),2),\"\")","v":""}]
[null,null,null,null,null,""]
[null,null,null,null,null,""]
[null,null,null,null,null,""]
[null,null,null,null,null,""]
[null,null,null,null,null,""]
[null,null,null,null,null,""]
[null,null,null,null,null,""]
[null,null,null,null,null,""]
[null,null,null,null,null,""]
[null,null,null,null,null,""]
[null,null,null,null,null,""]
[null,null,null,null,null,""]
[null,null,null,null,null,""]
[null,null,null,null,null,""]
[null,null,null,null,null,""]
[null,null,null,null,null,""]
[null,null,null,null,null,""]
[null,null,null,null,null,""]
[null,null,null,null,null,""]
[null,null,null,null,null,""]
[null,null,null,null,null,""]
[null,null,null,null,null,""]
[null,null,null,null,null,""]
[null,null,null,null,null,""]
[null,null,null,null,null,""]
[null,null,null,null,null,""]
[null,null,null,null,null,""]
[null,null,null,null,null,""]
[null,null,null,null,null,""]
[null,null,null,null,null,""]
[null,null,null,null,null,""]
[null,null,null,null,null,""]
[null,null,null,null,null,""]
[null,null,null,null,null,""]
[null,null,null,null,null,""]
[null,null,null,null,null,""]
[null,null,null,null,null,""]
[null,null,null,null,null,""]
[null,null,null,null,null,""]
[null,null,null,null,null,""]
[null,null,null,null,null,""]
[null,null,null,null,null,""]
[null,null,null,null,null,""]
[null,null,null,null,null,""]
[null,null,null,null,null,""]
[null,null,null,null,null,""]
[null,null,null,null,null,""]
[null,null,null,null,null,""]
[null,null,null,null,null,""]
[null,null,null,null,null,""]
[null,null,null,null,null,""]
[null,null,null,null,null,""]
[null,null,null,null,null,""]
[null,null,null,null,null,""]
[null,null,null,null,null,""]
[null,null,null,null,null,""]
[null,null,null,null,null,""]
[null,null,null,null,null,""]
[null,null,null,null,null,""]
[null,null,null,null,null,""]
[null,null,null,null,null,""]
[null,null,null,null,null,""]
[null,null,null,null,null,""]
[null,null,null,null,null,{"$f":"IFERROR(TRUNC(IF(B195=\"\",\"\",IF(AND(B195*C195>=350,YEAR(D195)<YEAR(TODAY())),350,IF(AND(B195*C195<=75,YEAR(D195)<YEAR(TODAY())),75,IF(YEAR(D195)=YEAR(TODAY()),(DATEDIF(D195,TODAY(),\"M\")/12*C195)*B195,C195*B195)))),2),\"\")","v":""}]
[null,null,null,null,null,""]
[null,null,null,null,null,""]
[null,null,null,null,null,""]
[null,null,null,null,null,""]
[null,null,null,null,null,""]
[null,null,null,null,null,""]
[null,null,null,null,null,""]
[null,null,null,null,null,""]
[null,null,null,null,null,""]
[null,null,null,null,null,""]
[null,null,null,null,null,""]
[null,null,null,null,null,""]
[null,null,null,null,null,""]
[null,null,null,null,null,""]
[null,null,null,null,null,""]
[null,null,null,null,null,""]
[null,null,null,null,null,""]
[null,null,null,null,null,""]
[null,null,null,null,null,""]
[null,null,null,null,null,""]
[null,null,null,null,null,""]
[null,null,null,null,null,""]
[null,null,null,null,null,""]
[null,null,null,null,null,""]
[null,null,null,null,null,""]
[null,null,null,null,null,""]
[null,null,null,null,null,""]
[null,null,null,null,null,""]
[null,null,null,null,null,""]
[null,null,null,null,null,""]
[null,null,null,null,null,""]
[null,null,null,null,null,""]
[null,null,null,null,null,""]
[null,null,null,null,null,""]
[null,null,null,null,null,""]
[null,null,null,null,null,""]
[null,null,null,null,null,""]
[null,null,null,null,null,""]
[null,null,null,null,null,""]
[null,null,null,null,null,""]
[null,null,null,null,null,""]
[null,null,null,null,null,""]
[null,null,null,null,null,""]
[null,null,null,null,null,""]
[null,null,null,null,null,""]
[null,null,null,null,null,""]
[null,null,null,null,null,""]
[null,null,null,null,null,""]
[null,null,null,null,null,""]
[null,null,null,null,null,""]
[null,null,null,null,null,""]
[null,null,null,null,null,""]
[null,null,null,null,null,""]
[null,null,null,null,null,""]
[null,null,null,null,null,""]
[null,null,null,null,null,""]
[null,null,null,null,null,""]
[null,null,null,null,null,""]
[null,null,null,null,null,""]
[null,null,null,null,null,""]
[null,null,null,null,null,""]
[null,null,null,null,null,""]
[null,null,null,null,null,""]
[null,null,null,null,null,{"$f":"IFERROR(TRUNC(IF(B259=\"\",\"\",IF(AND(B259*C259>=350,YEAR(D259)<YEAR(TODAY())),350,IF(AND(B259*C259<=75,YEAR(D259)<YEAR(TODAY())),75,IF(YEAR(D259)=YEAR(TODAY()),(DATEDIF(D259,TODAY(),\"M\")/12*C259)*B259,C259*B259)))),2),\"\")","v":""}]
[null,null,null,null,null,""]
[null,null,null,null,null,""]
[null,null,null,null,null,""]
[null,null,null,null,null,""]
[null,null,null,null,null,""]
[null,null,null,null,null,""]
[null,null,null,null,null,""]
[null,null,null,null,null,""]
[null,null,null,null,null,""]
[null,null,null,null,null,""]
[null,null,null,null,null,""]
[null,null,null,null,null,""]
[null,null,null,null,null,""]
[null,null,null,null,null,""]
[null,null,null,null,null,""]
[null,null,null,null,null,""]
[null,null,null,null,null,""]
[null,null,null,null,null,""]
[null,null,null,null,null,""]
[null,null,null,null,null,""]
[null,null,null,null,null,""]
[null,null,null,null,null,""]
[null,null,null,null,null,""]
[null,null,null,null,null,""]
[null,null,null,null,null,""]
[null,null,null,null,null,""]
[null,null,null,null,null,""]
[null,null,null,null,null,""]
[null,null,null,null,null,""]
[null,null,null,null,null,""]
[null,null,null,null,null,""]
[null,null,null,null,null,""]
[null,null,null,null,null,""]
[null,null,null,null,null,""]
[null,null,null,null,null,""]
[null,null,null,null,null,""]
[null,null,null,null,null,""]
[null,null,null,null,null,""]
[null,null,null,null,null,""]
[null,null,null,null,null,""]
[null,null,null,null,null,""]
[null,null,null,null,null,""]
[null,null,null,null,null,""]
[null,null,null,null,null,""]
[null,null,null,null,null,""]
[null,null,null,null,null,""]
[null,null,null,null,null,""]
[null,null,null,null,null,""]
[null,null,null,null,null,""]
[null,null,null,null,null,""]
[null,null,null,null,null,""]
[null,null,null,null,null,""]
[null,null,null,null,null,""]
[null,null,null,null,null,""]
[null,null,null,null,null,""]
[null,null,null,null,null,""]
[null,null,null,null,null,""]
[null,null,null,null,null,""]
[null,null,null,null,null,""]
[null,null,null,null,null,""]
[null,null,null,null,null,""]
[null,null,null,null,null,""]
[null,null,null,null,null,""]
[null,null,null,null,null,{"$f":"IFERROR(TRUNC(IF(B323=\"\",\"\",IF(AND(B323*C323>=350,YEAR(D323)<YEAR(TODAY())),350,IF(AND(B323*C323<=75,YEAR(D323)<YEAR(TODAY())),75,IF(YEAR(D323)=YEAR(TODAY()),(DATEDIF(D323,TODAY(),\"M\")/12*C323)*B323,C323*B323)))),2),\"\")","v":""}]
[null,null,null,null,null,""]
[null,null,null,null,null,""]
[null,null,null,null,null,""]
[null,null,null,null,null,""]
[null,null,null,null,null,""]
[null,null,null,null,null,""]
[null,null,null,null,null,""]
[null,null,null,null,null,""]
[null,null,null,null,null,""]
[null,null,null,null,null,""]
[null,null,null,null,null,""]
[null,null,null,null,null,""]
[null,null,null,null,null,""]
[null,null,null,null,null,""]
[null,null,null,null,null,""]
[null,null,null,null,null,""]
[null,null,null,null,null,""]
[null,null,null,null,null,""]
[null,null,null,null,null,""]
[null,null,null,null,null,""]
[null,null,null,null,null,""]
[null,null,null,null,null,""]
[null,null,null,null,null,""]
[null,null,null,null,null,""]
[null,null,null,null,null,""]
[null,null,null,null,null,""]
[null,null,null,null,null,""]
[null,null,null,null,null,""]
[null,null,null,null,null,""]
[null,null,null,null,null,""]
[null,null,null,null,null,""]
[null,null,null,null,null,""]
[null,null,null,null,null,""]
[null,null,null,null,null,""]
[null,null,null,null,null,""]
[null,null,null,null,null,""]
[null,null,null,null,null,""]
[null,null,null,null,null,""]
[null,null,null,null,null,""]
[null,null,null,null,null,""]
[null,null,null,null,null,""]
[null,null,null,null,null,""]
[null,null,null,null,null,""]
[null,null,null,null,null,""]
[null,null,null,null,null,""]
[null,null,null,null,null,""]
[null,null,null,null,null,""]
[null,null,null,null,null,""]
[null,null,null,null,null,""]
[null,null,null,null,null,""]
[null,null,null,null,null,""]
[null,null,null,null,null,""]
[null,null,null,null,null,""]
[null,null,null,null,null,""]
[null,null,null,null,null,""]
[null,null,null,null,null,""]
[null,null,null,null,null,""]
[null,null,null,null,null,""]
[null,null,null,null,null,""]
[null,null,null,null,null,""]
[null,null,null,null,null,""]
[null,null,null,null,null,""]
[null,null,null,null,null,""]
[null,null,null,null,null,{"$f":"IFERROR(TRUNC(IF(B387=\"\",\"\",IF(AND(B387*C387>=350,YEAR(D387)<YEAR(TODAY())),350,IF(AND(B387*C387<=75,YEAR(D387)<YEAR(TODAY())),75,IF(YEAR(D387)=YEAR(TODAY()),(DATEDIF(D387,TODAY(),\"M\")/12*C387)*B387,C387*B387)))),2),\"\")","v":""}]
[null,null,null,null,null,""]
[null,null,null,null,null,""]
[null,null,null,null,null,""]
[null,null,null,null,null,""]
[null,null,null,null,null,""]
[null,null,null,null,null,""]
[null,null,null,null,null,""]
[null,null,null,null,null,""]
[null,null,null,null,null,""]
[null,null,null,null,null,""]
[null,null,null,null,null,""]
[null,null,null,null,null,""]
[null,null,null,null,null,""]
[null,null,null,null,null,""]
[null,null,null,null,null,""]
[null,null,null,null,null,""]
[null,null,null,null,null,""]
[null,null,null,null,null,""]
[null,null,null,null,null,""]
[null,null,null,null,null,""]
[null,null,null,null,null,""]
[null,null,null,null,null,""]
[null,null,null,null,null,""]
[null,null,null,null,null,""]
[null,null,null,null,null,""]
[null,null,null,null,null,""]
[null,null,null,null,null,""]
[null,null,null,null,null,""]
[null,null,null,null,null,""]
[null,null,null,null,null,""]
[null,null,null,null,null,""]
[null,null,null,null,null,""]
[null,null,null,null,null,""]
[null,null,null,null,null,""]
[null,null,null,null,null,""]
[null,null,null,null,null,""]
[null,null,null,null,null,""]
[null,null,null,null,null,""]
[null,null,null,null,null,""]
[null,null,null,null,null,""]
[null,null,null,null,null,""]
[null,null,null,null,null,""]
[null,null,null,null,null,""]
[null,null,null,null,null,""]
[null,null,null,null,null,""]
[null,null,null,null,null,""]
[null,null,null,null,null,""]
[null,null,null,null,null,""]
[null,null,null,null,null,""]
[null,null,null,null,null,""]
[null,null,null,null,null,""]
[null,null,null,null,null,""]
[null,null,null,null,null,""]
[null,null,null,null,null,""]
[null,null,null,null,null,""]
[null,null,null,null,null,""]
[null,null,null,null,null,""]
[null,null,null,null,null,""]
[null,null,null,null,null,""]
[null,null,null,null,null,""]
[null,null,null,null,null,""]
[null,null,null,null,null,""]
[null,null,null,null,null,""]
[null,null,null,null,null,{"$f":"IFERROR(TRUNC(IF(B451=\"\",\"\",IF(AND(B451*C451>=350,YEAR(D451)<YEAR(TODAY())),350,IF(AND(B451*C451<=75,YEAR(D451)<YEAR(TODAY())),75,IF(YEAR(D451)=YEAR(TODAY()),(DATEDIF(D451,TODAY(),\"M\")/12*C451)*B451,C451*B451)))),2),\"\")","v":""}]
[null,null,null,null,null,""]
[null,null,null,null,null,""]
[null,null,null,null,null,""]
[null,null,null,null,null,""]
[null,null,null,null,null,""]
[null,null,null,null,null,""]
[null,null,null,null,null,""]
[null,null,null,null,null,""]
[null,null,null,null,null,""]
[null,null,null,null,null,""]
[null,null,null,null,null,""]
[null,null,null,null,null,""]
[null,null,null,null,null,""]
[null,null,null,null,null,""]
[null,null,null,null,null,""]
[null,null,null,null,null,""]
[null,null,null,null,null,""]
[null,null,null,null,null,""]
[null,null,null,null,null,""]
[null,null,null,null,null,""]
[null,null,null,null,null,""]
[null,null,null,null,null,""]
[null,null,null,null,null,""]
[null,null,null,null,null,""]
[null,null,null,null,null,""]
[null,null,null,null,null,""]
[null,null,null,null,null,""]
[null,null,null,null,null,""]
[null,null,null,null,null,""]
[null,null,null,null,null,""]
[null,null,null,null,null,""]
[null,null,null,null,null,""]
[null,null,null,null,null,""]
[null,null,null,null,null,""]
[null,null,null,null,null,""]
[null,null,null,null,null,""]
[null,null,null,null,null,""]
[null,null,null,null,null,""]
[null,null,null,null,null,""]
[null,null,null,null,null,""]
[null,null,null,null,null,""]
[null,null,null,null,null,""]
[null,null,null,null,null,""]
[null,null,null,null,null,""]
[null,null,null,null,null,""]
[null,null,null,null,null,""]
[null,null,null,null,null,""]
[null,null,null,null,null,""]
[null,null,null,null,null,""]
[null,null,null,null,null,""]
[null,null,null,null,null,""]
[null,null,null,null,null,""]
[null,null,null,null,null,""]
[null,null,null,null,null,""]
[null,null,null,null,null,""]
[null,null,null,null,null,""]
[null,null,null,null,null,""]
[null,null,null,null,null,""]
[null,null,null,null,null,""]
[null,null,null,null,null,""]
[null,null,null,null,null,""]
[null,null,null,null,null,""]
[null,null,null,null,null,""]
[null,null,null,null,null,{"$f":"IFERROR(TRUNC(IF(B515=\"\",\"\",IF(AND(B515*C515>=350,YEAR(D515)<YEAR(TODAY())),350,IF(AND(B515*C515<=75,YEAR(D515)<YEAR(TODAY())),75,IF(YEAR(D515)=YEAR(TODAY()),(DATEDIF(D515,TODAY(),\"M\")/12*C515)*B515,C515*B515)))),2),\"\")","v":""}]
[null,null,null,null,null,""]
[null,null,null,null,null,""]
[null,null,null,null,null,""]
[null,null,null,null,null,""]
[null,null,null,null,null,""]
[null,null,null,null,null,""]
[null,null,null,null,null,""]
[null,null,null,null,null,""]
[null,null,null,null,null,""]
[null,null,null,null,null,""]
[null,null,null,null,null,""]
[null,null,null,null,null,""]
[null,null,null,null,null,""]
[null,null,null,null,null,""]
[null,null,null,null,null,""]
[null,null,null,null,null,""]
[null,null,null,null,null,""]
[null,null,null,null,null,""]
[null,null,null,null,null,""]
[null,null,null,null,null,""]
[null,null,null,null,null,""]
[null,null,null,null,null,""]
[null,null,null,null,null,""]
[null,null,null,null,null,""]
[null,null,null,null,null,""]
[null,null,null,null,null,""]
[null,null,null,null,null,""]
[null,null,null,null,null,""]
[null,null,null,null,null,""]
[null,null,null,null,null,""]
[null,null,null,null,null,""]
[null,null,null,null,null,""]
[null,null,null,null,null,""]
[null,null,null,null,null,""]
[null,null,null,null,null,""]
[null,null,null,null,null,""]
[null,null,null,null,null,""]
[null,null,null,null,null,""]
[null,null,null,null,null,""]
[null,null,null,null,null,""]
[null,null,null,null,null,""]
[null,null,null,null,null,""]
[null,null,null,null,null,""]
[null,null,null,null,null,""]
[null,null,null,null,null,""]
[null,null,null,null,null,""]
[null,null,null,null,null,""]
[null,null,null,null,null,""]
[null,null,null,null,null,""]
[null,null,null,null,null,""]
[null,null,null,null,null,""]
[null,null,null,null,null,""]
[null,null,null,null,null,""]
[null,null,null,null,null,""]
[null,null,null,null,null,""]
[null,null,null,null,null,""]
[null,null,null,null,null,""]
[null,null,null,null,null,""]
[null,null,null,null,null,""]
[null,null,null,null,null,""]
[null,null,null,null,null,""]
[null,null,null,null,null,""]
[null,null,null,null,null,""]
[null,null,null,null,null,{"$f":"IFERROR(TRUNC(IF(B579=\"\",\"\",IF(AND(B579*C579>=350,YEAR(D579)<YEAR(TODAY())),350,IF(AND(B579*C579<=75,YEAR(D579)<YEAR(TODAY())),75,IF(YEAR(D579)=YEAR(TODAY()),(DATEDIF(D579,TODAY(),\"M\")/12*C579)*B579,C579*B579)))),2),\"\")","v":""}]
[null,null,null,null,null,""]
[null,null,null,null,null,""]
[null,null,null,null,null,""]
[null,null,null,null,null,""]
[null,null,null,null,null,""]
[null,null,null,null,null,""]
[null,null,null,null,null,""]
[null,null,null,null,null,""]
[null,null,null,null,null,""]
[null,null,null,null,null,""]
[null,null,null,null,null,""]
[null,null,null,null,null,""]
[null,null,null,null,null,""]
[null,null,null,null,null,""]
[null,null,null,null,null,""]
[null,null,null,null,null,""]
[null,null,null,null,null,""]
[null,null,null,null,null,""]
[null,null,null,null,null,""]
[null,null,null,null,null,""]
[null,null,null,null,null,""]
[null,null,null,null,null,""]
[null,null,null,null,null,""]
[null,null,null,null,null,""]
[null,null,null,null,null,""]
[null,null,null,null,null,""]
[null,null,null,null,null,""]
[null,null,null,null,null,""]
[null,null,null,null,null,""]
[null,null,null,null,null,""]
[null,null,null,null,null,""]
[null,null,null,null,null,""]
[null,null,null,null,null,""]
[null,null,null,null,null,""]
[null,null,null,null,null,""]
[null,null,null,null,null,""]
[null,null,null,null,null,""]
[null,null,null,null,null,""]
[null,null,null,null,null,""]
[null,null,null,null,null,""]
[null,null,null,null,null,""]
[null,null,null,null,null,""]
[null,null,null,null,null,""]
[null,null,null,null,null,""]
[null,null,null,null,null,""]
[null,null,null,null,null,""]
[null,null,null,null,null,""]
[null,null,null,null,null,""]
[null,null,null,null,null,""]
[null,null,null,null,null,""]
[null,null,null,null,null,""]
[null,null,null,null,null,""]
[null,null,null,null,null,""]
[null,null,null,null,null,""]
[null,null,null,null,null,""]
[null,null,null,null,null,""]
[null,null,null,null,null,""]
[null,null,null,null,null,""]
[null,null,null,null,null,""]
[null,null,null,null,null,""]
[null,null,null,null,null,""]
[null,null,null,null,null,""]
[null,null,null,null,null,""]
[null,null,null,null,null,{"$f":"IFERROR(TRUNC(IF(B643=\"\",\"\",IF(AND(B643*C643>=350,YEAR(D643)<YEAR(TODAY())),350,IF(AND(B643*C643<=75,YEAR(D643)<YEAR(TODAY())),75,IF(YEAR(D643)=YEAR(TODAY()),(DATEDIF(D643,TODAY(),\"M\")/12*C643)*B643,C643*B643)))),2),\"\")","v":""}]
[null,null,null,null,null,""]
[null,null,null,null,null,""]
[null,null,null,null,null,""]
[null,null,null,null,null,""]
[null,null,null,null,null,""]
[null,null,null,null,null,""]
[null,null,null,null,null,""]
[null,null,null,null,null,""]
[null,null,null,null,null,""]
[null,null,null,null,null,""]
[null,null,null,null,null,""]
[null,null,null,null,null,""]
[null,null,null,null,null,""]
[null,null,null,null,null,""]
[null,null,null,null,null,""]
[null,null,null,null,null,""]
[null,null,null,null,null,""]
[null,null,null,null,null,""]
[null,null,null,null,null,""]
[null,null,null,null,null,""]
[null,null,null,null,null,""]
[null,null,null,null,null,""]
[null,null,null,null,null,""]
[null,null,null,null,null,""]
[null,null,null,null,null,""]
[null,null,null,null,null,""]